Workbook

Sheet VBA
A1: Температура | B1: t | D1: 27.3
A2: Избыточное давление | B2: P | D2: 2.45
A3: Измеренная плотность | D3: 836.15
A5: Плотность при температуре t и избыточном давлении P, кг/м3 | B5: Ptp | C5: 1 | D5: =ROUND(P_15*EXP(-B_15*(t-15)*(1+0.8*B_15*(t-15))/1-Yt*P),1) -> 815.6
A6: Плотность при температуре 15 и избыточном давлении 0 | B6: P15 | D6: =P_to_15(D11,D1,P) -> 826.45
A7: Плотность при температуре 20 и избычтоном давлении 0 | B7: P20 | C7: 5 | D7: =ROUND(P_15*EXP(-5*B_15*(1+4*B_15)),1) -> 822.7
A8: Коэффициент объёмного расширения при температуре 15 | B8: B15 | C8: 2 | D8: =(K_0+K_1*P_15)/P_15^2+K_2 -> 0.0008989087542
A9: Коэффициент объёмного расширения при температуре t | B9: Bt | C9: 4 | D9: =B_15+1.6*B_15^2*(t-15) -> 0.0009148109214
A10: Коэффициент сжимаемости при температуре t | B10: Yt | C10: 3 | D10: =10^-3*EXP(-1.6208+0.00021592*t+((0.87096*10^6)/P_15^2)+((4.2092*t*10^3)/P_15^2)) -> 0.0008423965536
A11: Плотность при температуре t и избыточном давлении 0 | B11: Pt | D11: 834
A12: Температурная поправка к плотности приходящаяся на 1,0 | B12: a
B14: K0 | D14: 613.9723
B15: K1 | D15: 0
B16: K2 | D16: 0

Sheet Руками
A1: k0 | B1: 613.9723
A2: k1 | B2: 0 | E2: Данные из примера
A3: k2 | B3: 0 | D3: b15 | E3: =8.782*10^-4 -> 0.0008782
A4: P | B4: 2.45 | D4: Yt | E4: =8.148*10^-4 -> 0.0008148
A5: dens | B5: 836.15
A6: temp | B6: 27.3
A8: (2) | B8: (3) | C8: (1)
A9: b15 | B9: Yt | C9: new_dens
A10: =((k_0+k_1*dens)/dens^2)+k_2 -> 0.0008781736257 | B10: =10^-3*EXP(-1.6208+0.00021592*temp+((0.87096*10^6)/dens^2)+((4.2092*temp*10^3)/dens^2)) -> 0.0008148107999 | C10: =(dens * EXP(-A10*(temp-15)*(1+0.8*A10*(temp - 15))))/(1-B10*P) -> 828.7441067 | D10: =ABS(C10-dens) -> 7.405893312
A11: =((k_0+k_1*C10)/C10^2)+k_2 -> 0.0008939389733 | B11: =10 ^ -3 * EXP(-1.6208 + 0.00021592 * temp + ((0.87096 * 10 ^ 6) / C10 ^ 2) + ((4.2092 *temp * 10 ^ 3) / C10 ^ 2)) -> 0.0008357008919 | C11: =(dens * EXP(-A11*(temp-15)*(1+0.8*A11*(temp - 15))))/(1-B11*P) -> 828.62311 | D11: =C10-C11 -> 0.1209967132
A12: =((k_0+k_1*C11)/C11^2)+k_2 -> 0.0008942000608 | B12: =10 ^ -3 * EXP(-1.6208 + 0.00021592 * temp + ((0.87096 * 10 ^ 6) / C11 ^ 2) + ((4.2092 *temp * 10 ^ 3) / C11 ^ 2)) -> 0.0008360513204 | C12: =(dens * EXP(-A12*(temp-15)*(1+0.8*A12*(temp - 15))))/(1-B12*P) -> 828.621115 | D12: =C11-C12 -> 0.001994965685
A13: 0.0008942043665 | B13: =10 ^ -3 * EXP(-1.6208 + 0.00021592 * temp + ((0.87096 * 10 ^ 6) / C12 ^ 2) + ((4.2092 *temp * 10 ^ 3) / C12 ^ 2)) -> 0.0008360571007 | C13: =(dens * EXP(-A13*(temp-15)*(1+0.8*A13*(temp - 15))))/(1-B13*P) -> 828.6210821 | D13: 3.289741801e-05
A14: 0.0008942044375 | B14: =10 ^ -3 * EXP(-1.6208 + 0.00021592 * temp + ((0.87096 * 10 ^ 6) / C13 ^ 2) + ((4.2092 *temp * 10 ^ 3) / C13 ^ 2)) -> 0.000836057196 | C14: =(dens * EXP(-A14*(temp-15)*(1+0.8*A14*(temp - 15))))/(1-B14*P) -> 828.6210816 | D14: 5.424869869e-07
A15: 0.0008942044387 | B15: =10 ^ -3 * EXP(-1.6208 + 0.00021592 * temp + ((0.87096 * 10 ^ 6) / C14 ^ 2) + ((4.2092 *temp * 10 ^ 3) / C14 ^ 2)) -> 0.0008360571976 | C15: =(dens * EXP(-A15*(temp-15)*(1+0.8*A15*(temp - 15))))/(1-B15*P) -> 828.6210816 | D15: 8.9456762e-09
A16: 0.0008942044387 | B16: =10 ^ -3 * EXP(-1.6208 + 0.00021592 * temp + ((0.87096 * 10 ^ 6) / C15 ^ 2) + ((4.2092 *temp * 10 ^ 3) / C15 ^ 2)) -> 0.0008360571976 | C16: =(dens * EXP(-A16*(temp-15)*(1+0.8*A16*(temp - 15))))/(1-B16*P) -> 828.6210816 | D16: 1.475655154e-10
A17: 0.0008942044387 | B17: =10 ^ -3 * EXP(-1.6208 + 0.00021592 * temp + ((0.87096 * 10 ^ 6) / C16 ^ 2) + ((4.2092 *temp * 10 ^ 3) / C16 ^ 2)) -> 0.0008360571976 | C17: =(dens * EXP(-A17*(temp-15)*(1+0.8*A17*(temp - 15))))/(1-B17*P) -> 828.6210816 | D17: 2.50111043e-12
A18: 0.0008942044387 | B18: =10 ^ -3 * EXP(-1.6208 + 0.00021592 * temp + ((0.87096 * 10 ^ 6) / C17 ^ 2) + ((4.2092 *temp * 10 ^ 3) / C17 ^ 2)) -> 0.0008360571976 | C18: =(dens * EXP(-A18*(temp-15)*(1+0.8*A18*(temp - 15))))/(1-B18*P) -> 828.6210816 | D18: 0
A19: 0.0008942044387 | B19: =10 ^ -3 * EXP(-1.6208 + 0.00021592 * temp + ((0.87096 * 10 ^ 6) / C18 ^ 2) + ((4.2092 *temp * 10 ^ 3) / C18 ^ 2)) -> 0.0008360571976 | C19: =(dens * EXP(-A19*(temp-15)*(1+0.8*A19*(temp - 15))))/(1-B19*P) -> 828.6210816 | D19: 0
A20: 0.0008942044387 | B20: =10 ^ -3 * EXP(-1.6208 + 0.00021592 * temp + ((0.87096 * 10 ^ 6) / C19 ^ 2) + ((4.2092 *temp * 10 ^ 3) / C19 ^ 2)) -> 0.0008360571976 | C20: =(dens * EXP(-A20*(temp-15)*(1+0.8*A20*(temp - 15))))/(1-B20*P) -> 828.6210816 | D20: 0
A21: 0.0008942044387 | B21: =10 ^ -3 * EXP(-1.6208 + 0.00021592 * temp + ((0.87096 * 10 ^ 6) / C20 ^ 2) + ((4.2092 *temp * 10 ^ 3) / C20 ^ 2)) -> 0.0008360571976 | C21: =(dens * EXP(-A21*(temp-15)*(1+0.8*A21*(temp - 15))))/(1-B21*P) -> 828.6210816 | D21: 0
A22: 0.0008942044387 | B22: =10 ^ -3 * EXP(-1.6208 + 0.00021592 * temp + ((0.87096 * 10 ^ 6) / C21 ^ 2) + ((4.2092 *temp * 10 ^ 3) / C21 ^ 2)) -> 0.0008360571976 | C22: =(dens * EXP(-A22*(temp-15)*(1+0.8*A22*(temp - 15))))/(1-B22*P) -> 828.6210816 | D22: 0
A23: 0.0008942044387 | B23: =10 ^ -3 * EXP(-1.6208 + 0.00021592 * temp + ((0.87096 * 10 ^ 6) / C22 ^ 2) + ((4.2092 *temp * 10 ^ 3) / C22 ^ 2)) -> 0.0008360571976 | C23: =(dens * EXP(-A23*(temp-15)*(1+0.8*A23*(temp - 15))))/(1-B23*P) -> 828.6210816 | D23: 0
A24: 0.0008942044387 | B24: =10 ^ -3 * EXP(-1.6208 + 0.00021592 * temp + ((0.87096 * 10 ^ 6) / C23 ^ 2) + ((4.2092 *temp * 10 ^ 3) / C23 ^ 2)) -> 0.0008360571976 | C24: =(dens * EXP(-A24*(temp-15)*(1+0.8*A24*(temp - 15))))/(1-B24*P) -> 828.6210816 | D24: 0
A25: 0.0008942044387 | B25: =10 ^ -3 * EXP(-1.6208 + 0.00021592 * temp + ((0.87096 * 10 ^ 6) / C24 ^ 2) + ((4.2092 *temp * 10 ^ 3) / C24 ^ 2)) -> 0.0008360571976 | C25: =(dens * EXP(-A25*(temp-15)*(1+0.8*A25*(temp - 15))))/(1-B25*P) -> 828.6210816 | D25: 0
A26: 0.0008942044387 | B26: =10 ^ -3 * EXP(-1.6208 + 0.00021592 * temp + ((0.87096 * 10 ^ 6) / C25 ^ 2) + ((4.2092 *temp * 10 ^ 3) / C25 ^ 2)) -> 0.0008360571976 | C26: =(dens * EXP(-A26*(temp-15)*(1+0.8*A26*(temp - 15))))/(1-B26*P) -> 828.6210816 | D26: 0
A27: 0.0008942044387 | B27: =10 ^ -3 * EXP(-1.6208 + 0.00021592 * temp + ((0.87096 * 10 ^ 6) / C26 ^ 2) + ((4.2092 *temp * 10 ^ 3) / C26 ^ 2)) -> 0.0008360571976 | C27: =(dens * EXP(-A27*(temp-15)*(1+0.8*A27*(temp - 15))))/(1-B27*P) -> 828.6210816 | D27: 0
A28: 0.0008942044387 | B28: =10 ^ -3 * EXP(-1.6208 + 0.00021592 * temp + ((0.87096 * 10 ^ 6) / C27 ^ 2) + ((4.2092 *temp * 10 ^ 3) / C27 ^ 2)) -> 0.0008360571976 | C28: =(dens * EXP(-A28*(temp-15)*(1+0.8*A28*(temp - 15))))/(1-B28*P) -> 828.6210816 | D28: 0
A29: 0.0008942044387 | B29: =10 ^ -3 * EXP(-1.6208 + 0.00021592 * temp + ((0.87096 * 10 ^ 6) / C28 ^ 2) + ((4.2092 *temp * 10 ^ 3) / C28 ^ 2)) -> 0.0008360571976 | C29: =(dens * EXP(-A29*(temp-15)*(1+0.8*A29*(temp - 15))))/(1-B29*P) -> 828.6210816 | D29: 0
A30: 0.0008942044387 | B30: =10 ^ -3 * EXP(-1.6208 + 0.00021592 * temp + ((0.87096 * 10 ^ 6) / C29 ^ 2) + ((4.2092 *temp * 10 ^ 3) / C29 ^ 2)) -> 0.0008360571976 | C30: =(dens * EXP(-A30*(temp-15)*(1+0.8*A30*(temp - 15))))/(1-B30*P) -> 828.6210816 | D30: 0
A31: 0.0008942044387 | B31: =10 ^ -3 * EXP(-1.6208 + 0.00021592 * temp + ((0.87096 * 10 ^ 6) / C30 ^ 2) + ((4.2092 *temp * 10 ^ 3) / C30 ^ 2)) -> 0.0008360571976 | C31: =(dens * EXP(-A31*(temp-15)*(1+0.8*A31*(temp - 15))))/(1-B31*P) -> 828.6210816 | D31: 0
A32: 0.0008942044387 | B32: =10 ^ -3 * EXP(-1.6208 + 0.00021592 * temp + ((0.87096 * 10 ^ 6) / C31 ^ 2) + ((4.2092 *temp * 10 ^ 3) / C31 ^ 2)) -> 0.0008360571976 | C32: =(dens * EXP(-A32*(temp-15)*(1+0.8*A32*(temp - 15))))/(1-B32*P) -> 828.6210816 | D32: 0
A33: 0.0008942044387 | B33: =10 ^ -3 * EXP(-1.6208 + 0.00021592 * temp + ((0.87096 * 10 ^ 6) / C32 ^ 2) + ((4.2092 *temp * 10 ^ 3) / C32 ^ 2)) -> 0.0008360571976 | C33: =(dens * EXP(-A33*(temp-15)*(1+0.8*A33*(temp - 15))))/(1-B33*P) -> 828.6210816 | D33: 0
A34: 0.0008942044387 | B34: =10 ^ -3 * EXP(-1.6208 + 0.00021592 * temp + ((0.87096 * 10 ^ 6) / C33 ^ 2) + ((4.2092 *temp * 10 ^ 3) / C33 ^ 2)) -> 0.0008360571976 | C34: =(dens * EXP(-A34*(temp-15)*(1+0.8*A34*(temp - 15))))/(1-B34*P) -> 828.6210816 | D34: 0
A35: 0.0008942044387 | B35: =10 ^ -3 * EXP(-1.6208 + 0.00021592 * temp + ((0.87096 * 10 ^ 6) / C34 ^ 2) + ((4.2092 *temp * 10 ^ 3) / C34 ^ 2)) -> 0.0008360571976 | C35: =(dens * EXP(-A35*(temp-15)*(1+0.8*A35*(temp - 15))))/(1-B35*P) -> 828.6210816 | D35: 0
A36: 0.0008942044387 | B36: =10 ^ -3 * EXP(-1.6208 + 0.00021592 * temp + ((0.87096 * 10 ^ 6) / C35 ^ 2) + ((4.2092 *temp * 10 ^ 3) / C35 ^ 2)) -> 0.0008360571976 | C36: =(dens * EXP(-A36*(temp-15)*(1+0.8*A36*(temp - 15))))/(1-B36*P) -> 828.6210816 | D36: 0
A37: 0.0008942044387 | B37: =10 ^ -3 * EXP(-1.6208 + 0.00021592 * temp + ((0.87096 * 10 ^ 6) / C36 ^ 2) + ((4.2092 *temp * 10 ^ 3) / C36 ^ 2)) -> 0.0008360571976 | C37: =(dens * EXP(-A37*(temp-15)*(1+0.8*A37*(temp - 15))))/(1-B37*P) -> 828.6210816 | D37: 0
A38: 0.0008942044387 | B38: =10 ^ -3 * EXP(-1.6208 + 0.00021592 * temp + ((0.87096 * 10 ^ 6) / C37 ^ 2) + ((4.2092 *temp * 10 ^ 3) / C37 ^ 2)) -> 0.0008360571976 | C38: =(dens * EXP(-A38*(temp-15)*(1+0.8*A38*(temp - 15))))/(1-B38*P) -> 828.6210816 | D38: 0
A39: 0.0008942044387 | B39: =10 ^ -3 * EXP(-1.6208 + 0.00021592 * temp + ((0.87096 * 10 ^ 6) / C38 ^ 2) + ((4.2092 *temp * 10 ^ 3) / C38 ^ 2)) -> 0.0008360571976 | C39: =(dens * EXP(-A39*(temp-15)*(1+0.8*A39*(temp - 15))))/(1-B39*P) -> 828.6210816 | D39: 0
A40: 0.0008942044387 | B40: =10 ^ -3 * EXP(-1.6208 + 0.00021592 * temp + ((0.87096 * 10 ^ 6) / C39 ^ 2) + ((4.2092 *temp * 10 ^ 3) / C39 ^ 2)) -> 0.0008360571976 | C40: =(dens * EXP(-A40*(temp-15)*(1+0.8*A40*(temp - 15))))/(1-B40*P) -> 828.6210816 | D40: 0
A41: 0.0008942044387 | B41: =10 ^ -3 * EXP(-1.6208 + 0.00021592 * temp + ((0.87096 * 10 ^ 6) / C40 ^ 2) + ((4.2092 *temp * 10 ^ 3) / C40 ^ 2)) -> 0.0008360571976 | C41: =(dens * EXP(-A41*(temp-15)*(1+0.8*A41*(temp - 15))))/(1-B41*P) -> 828.6210816 | D41: 0
A42: 0.0008942044387 | B42: =10 ^ -3 * EXP(-1.6208 + 0.00021592 * temp + ((0.87096 * 10 ^ 6) / C41 ^ 2) + ((4.2092 *temp * 10 ^ 3) / C41 ^ 2)) -> 0.0008360571976 | C42: =(dens * EXP(-A42*(temp-15)*(1+0.8*A42*(temp - 15))))/(1-B42*P) -> 828.6210816 | D42: 0
A43: 0.0008942044387 | B43: =10 ^ -3 * EXP(-1.6208 + 0.00021592 * temp + ((0.87096 * 10 ^ 6) / C42 ^ 2) + ((4.2092 *temp * 10 ^ 3) / C42 ^ 2)) -> 0.0008360571976 | C43: =(dens * EXP(-A43*(temp-15)*(1+0.8*A43*(temp - 15))))/(1-B43*P) -> 828.6210816 | D43: 0
A44: 0.0008942044387 | B44: =10 ^ -3 * EXP(-1.6208 + 0.00021592 * temp + ((0.87096 * 10 ^ 6) / C43 ^ 2) + ((4.2092 *temp * 10 ^ 3) / C43 ^ 2)) -> 0.0008360571976 | C44: =(dens * EXP(-A44*(temp-15)*(1+0.8*A44*(temp - 15))))/(1-B44*P) -> 828.6210816 | D44: 0
A45: 0.0008942044387 | B45: =10 ^ -3 * EXP(-1.6208 + 0.00021592 * temp + ((0.87096 * 10 ^ 6) / C44 ^ 2) + ((4.2092 *temp * 10 ^ 3) / C44 ^ 2)) -> 0.0008360571976 | C45: =(dens * EXP(-A45*(temp-15)*(1+0.8*A45*(temp - 15))))/(1-B45*P) -> 828.6210816 | D45: 0
A46: 0.0008942044387 | B46: =10 ^ -3 * EXP(-1.6208 + 0.00021592 * temp + ((0.87096 * 10 ^ 6) / C45 ^ 2) + ((4.2092 *temp * 10 ^ 3) / C45 ^ 2)) -> 0.0008360571976 | C46: =(dens * EXP(-A46*(temp-15)*(1+0.8*A46*(temp - 15))))/(1-B46*P) -> 828.6210816 | D46: 0
A47: 0.0008942044387 | B47: =10 ^ -3 * EXP(-1.6208 + 0.00021592 * temp + ((0.87096 * 10 ^ 6) / C46 ^ 2) + ((4.2092 *temp * 10 ^ 3) / C46 ^ 2)) -> 0.0008360571976 | C47: =(dens * EXP(-A47*(temp-15)*(1+0.8*A47*(temp - 15))))/(1-B47*P) -> 828.6210816 | D47: 0
A48: 0.0008942044387 | B48: =10 ^ -3 * EXP(-1.6208 + 0.00021592 * temp + ((0.87096 * 10 ^ 6) / C47 ^ 2) + ((4.2092 *temp * 10 ^ 3) / C47 ^ 2)) -> 0.0008360571976 | C48: =(dens * EXP(-A48*(temp-15)*(1+0.8*A48*(temp - 15))))/(1-B48*P) -> 828.6210816 | D48: 0
A49: 0.0008942044387 | B49: =10 ^ -3 * EXP(-1.6208 + 0.00021592 * temp + ((0.87096 * 10 ^ 6) / C48 ^ 2) + ((4.2092 *temp * 10 ^ 3) / C48 ^ 2)) -> 0.0008360571976 | C49: =(dens * EXP(-A49*(temp-15)*(1+0.8*A49*(temp - 15))))/(1-B49*P) -> 828.6210816 | D49: 0
A50: 0.0008942044387 | B50: =10 ^ -3 * EXP(-1.6208 + 0.00021592 * temp + ((0.87096 * 10 ^ 6) / C49 ^ 2) + ((4.2092 *temp * 10 ^ 3) / C49 ^ 2)) -> 0.0008360571976 | C50: =(dens * EXP(-A50*(temp-15)*(1+0.8*A50*(temp - 15))))/(1-B50*P) -> 828.6210816 | D50: 0
A51: 0.0008942044387 | B51: =10 ^ -3 * EXP(-1.6208 + 0.00021592 * temp + ((0.87096 * 10 ^ 6) / C50 ^ 2) + ((4.2092 *temp * 10 ^ 3) / C50 ^ 2)) -> 0.0008360571976 | C51: =(dens * EXP(-A51*(temp-15)*(1+0.8*A51*(temp - 15))))/(1-B51*P) -> 828.6210816 | D51: 0
A52: 0.0008942044387 | B52: =10 ^ -3 * EXP(-1.6208 + 0.00021592 * temp + ((0.87096 * 10 ^ 6) / C51 ^ 2) + ((4.2092 *temp * 10 ^ 3) / C51 ^ 2)) -> 0.0008360571976 | C52: =(dens * EXP(-A52*(temp-15)*(1+0.8*A52*(temp - 15))))/(1-B52*P) -> 828.6210816 | D52: 0
A53: 0.0008942044387 | B53: =10 ^ -3 * EXP(-1.6208 + 0.00021592 * temp + ((0.87096 * 10 ^ 6) / C52 ^ 2) + ((4.2092 *temp * 10 ^ 3) / C52 ^ 2)) -> 0.0008360571976 | C53: =(dens * EXP(-A53*(temp-15)*(1+0.8*A53*(temp - 15))))/(1-B53*P) -> 828.6210816 | D53: 0
A54: 0.0008942044387 | B54: =10 ^ -3 * EXP(-1.6208 + 0.00021592 * temp + ((0.87096 * 10 ^ 6) / C53 ^ 2) + ((4.2092 *temp * 10 ^ 3) / C53 ^ 2)) -> 0.0008360571976 | C54: =(dens * EXP(-A54*(temp-15)*(1+0.8*A54*(temp - 15))))/(1-B54*P) -> 828.6210816 | D54: 0
A55: 0.0008942044387 | B55: =10 ^ -3 * EXP(-1.6208 + 0.00021592 * temp + ((0.87096 * 10 ^ 6) / C54 ^ 2) + ((4.2092 *temp * 10 ^ 3) / C54 ^ 2)) -> 0.0008360571976 | C55: =(dens * EXP(-A55*(temp-15)*(1+0.8*A55*(temp - 15))))/(1-B55*P) -> 828.6210816 | D55: 0
A56: 0.0008942044387 | B56: =10 ^ -3 * EXP(-1.6208 + 0.00021592 * temp + ((0.87096 * 10 ^ 6) / C55 ^ 2) + ((4.2092 *temp * 10 ^ 3) / C55 ^ 2)) -> 0.0008360571976 | C56: =(dens * EXP(-A56*(temp-15)*(1+0.8*A56*(temp - 15))))/(1-B56*P) -> 828.6210816 | D56: 0
A57: 0.0008942044387 | B57: =10 ^ -3 * EXP(-1.6208 + 0.00021592 * temp + ((0.87096 * 10 ^ 6) / C56 ^ 2) + ((4.2092 *temp * 10 ^ 3) / C56 ^ 2)) -> 0.0008360571976 | C57: =(dens * EXP(-A57*(temp-15)*(1+0.8*A57*(temp - 15))))/(1-B57*P) -> 828.6210816 | D57: 0
A58: 0.0008942044387 | B58: =10 ^ -3 * EXP(-1.6208 + 0.00021592 * temp + ((0.87096 * 10 ^ 6) / C57 ^ 2) + ((4.2092 *temp * 10 ^ 3) / C57 ^ 2)) -> 0.0008360571976 | C58: =(dens * EXP(-A58*(temp-15)*(1+0.8*A58*(temp - 15))))/(1-B58*P) -> 828.6210816 | D58: 0
A59: 0.0008942044387 | B59: =10 ^ -3 * EXP(-1.6208 + 0.00021592 * temp + ((0.87096 * 10 ^ 6) / C58 ^ 2) + ((4.2092 *temp * 10 ^ 3) / C58 ^ 2)) -> 0.0008360571976 | C59: =(dens * EXP(-A59*(temp-15)*(1+0.8*A59*(temp - 15))))/(1-B59*P) -> 828.6210816 | D59: 0
A60: 0.0008942044387 | B60: =10 ^ -3 * EXP(-1.6208 + 0.00021592 * temp + ((0.87096 * 10 ^ 6) / C59 ^ 2) + ((4.2092 *temp * 10 ^ 3) / C59 ^ 2)) -> 0.0008360571976 | C60: =(dens * EXP(-A60*(temp-15)*(1+0.8*A60*(temp - 15))))/(1-B60*P) -> 828.6210816 | D60: 0
A61: 0.0008942044387 | B61: =10 ^ -3 * EXP(-1.6208 + 0.00021592 * temp + ((0.87096 * 10 ^ 6) / C60 ^ 2) + ((4.2092 *temp * 10 ^ 3) / C60 ^ 2)) -> 0.0008360571976 | C61: =(dens * EXP(-A61*(temp-15)*(1+0.8*A61*(temp - 15))))/(1-B61*P) -> 828.6210816 | D61: 0
A62: 0.0008942044387 | B62: =10 ^ -3 * EXP(-1.6208 + 0.00021592 * temp + ((0.87096 * 10 ^ 6) / C61 ^ 2) + ((4.2092 *temp * 10 ^ 3) / C61 ^ 2)) -> 0.0008360571976 | C62: =(dens * EXP(-A62*(temp-15)*(1+0.8*A62*(temp - 15))))/(1-B62*P) -> 828.6210816 | D62: 0
A63: 0.0008942044387 | B63: =10 ^ -3 * EXP(-1.6208 + 0.00021592 * temp + ((0.87096 * 10 ^ 6) / C62 ^ 2) + ((4.2092 *temp * 10 ^ 3) / C62 ^ 2)) -> 0.0008360571976 | C63: =(dens * EXP(-A63*(temp-15)*(1+0.8*A63*(temp - 15))))/(1-B63*P) -> 828.6210816 | D63: 0
A64: 0.0008942044387 | B64: =10 ^ -3 * EXP(-1.6208 + 0.00021592 * temp + ((0.87096 * 10 ^ 6) / C63 ^ 2) + ((4.2092 *temp * 10 ^ 3) / C63 ^ 2)) -> 0.0008360571976 | C64: =(dens * EXP(-A64*(temp-15)*(1+0.8*A64*(temp - 15))))/(1-B64*P) -> 828.6210816 | D64: 0
A65: 0.0008942044387 | B65: =10 ^ -3 * EXP(-1.6208 + 0.00021592 * temp + ((0.87096 * 10 ^ 6) / C64 ^ 2) + ((4.2092 *temp * 10 ^ 3) / C64 ^ 2)) -> 0.0008360571976 | C65: =(dens * EXP(-A65*(temp-15)*(1+0.8*A65*(temp - 15))))/(1-B65*P) -> 828.6210816 | D65: 0
A66: 0.0008942044387 | B66: =10 ^ -3 * EXP(-1.6208 + 0.00021592 * temp + ((0.87096 * 10 ^ 6) / C65 ^ 2) + ((4.2092 *temp * 10 ^ 3) / C65 ^ 2)) -> 0.0008360571976 | C66: =(dens * EXP(-A66*(temp-15)*(1+0.8*A66*(temp - 15))))/(1-B66*P) -> 828.6210816 | D66: 0
A67: 0.0008942044387 | B67: =10 ^ -3 * EXP(-1.6208 + 0.00021592 * temp + ((0.87096 * 10 ^ 6) / C66 ^ 2) + ((4.2092 *temp * 10 ^ 3) / C66 ^ 2)) -> 0.0008360571976 | C67: =(dens * EXP(-A67*(temp-15)*(1+0.8*A67*(temp - 15))))/(1-B67*P) -> 828.6210816 | D67: 0
A68: 0.0008942044387 | B68: =10 ^ -3 * EXP(-1.6208 + 0.00021592 * temp + ((0.87096 * 10 ^ 6) / C67 ^ 2) + ((4.2092 *temp * 10 ^ 3) / C67 ^ 2)) -> 0.0008360571976 | C68: =(dens * EXP(-A68*(temp-15)*(1+0.8*A68*(temp - 15))))/(1-B68*P) -> 828.6210816 | D68: 0
A69: 0.0008942044387 | B69: =10 ^ -3 * EXP(-1.6208 + 0.00021592 * temp + ((0.87096 * 10 ^ 6) / C68 ^ 2) + ((4.2092 *temp * 10 ^ 3) / C68 ^ 2)) -> 0.0008360571976 | C69: =(dens * EXP(-A69*(temp-15)*(1+0.8*A69*(temp - 15))))/(1-B69*P) -> 828.6210816 | D69: 0
A70: 0.0008942044387 | B70: =10 ^ -3 * EXP(-1.6208 + 0.00021592 * temp + ((0.87096 * 10 ^ 6) / C69 ^ 2) + ((4.2092 *temp * 10 ^ 3) / C69 ^ 2)) -> 0.0008360571976 | C70: =(dens * EXP(-A70*(temp-15)*(1+0.8*A70*(temp - 15))))/(1-B70*P) -> 828.6210816 | D70: 0
A71: 0.0008942044387 | B71: =10 ^ -3 * EXP(-1.6208 + 0.00021592 * temp + ((0.87096 * 10 ^ 6) / C70 ^ 2) + ((4.2092 *temp * 10 ^ 3) / C70 ^ 2)) -> 0.0008360571976 | C71: =(dens * EXP(-A71*(temp-15)*(1+0.8*A71*(temp - 15))))/(1-B71*P) -> 828.6210816 | D71: 0
A72: 0.0008942044387 | B72: =10 ^ -3 * EXP(-1.6208 + 0.00021592 * temp + ((0.87096 * 10 ^ 6) / C71 ^ 2) + ((4.2092 *temp * 10 ^ 3) / C71 ^ 2)) -> 0.0008360571976 | C72: =(dens * EXP(-A72*(temp-15)*(1+0.8*A72*(temp - 15))))/(1-B72*P) -> 828.6210816 | D72: 0
A73: 0.0008942044387 | B73: =10 ^ -3 * EXP(-1.6208 + 0.00021592 * temp + ((0.87096 * 10 ^ 6) / C72 ^ 2) + ((4.2092 *temp * 10 ^ 3) / C72 ^ 2)) -> 0.0008360571976 | C73: =(dens * EXP(-A73*(temp-15)*(1+0.8*A73*(temp - 15))))/(1-B73*P) -> 828.6210816 | D73: 0
A74: 0.0008942044387 | B74: =10 ^ -3 * EXP(-1.6208 + 0.00021592 * temp + ((0.87096 * 10 ^ 6) / C73 ^ 2) + ((4.2092 *temp * 10 ^ 3) / C73 ^ 2)) -> 0.0008360571976 | C74: =(dens * EXP(-A74*(temp-15)*(1+0.8*A74*(temp - 15))))/(1-B74*P) -> 828.6210816 | D74: 0
A75: 0.0008942044387 | B75: =10 ^ -3 * EXP(-1.6208 + 0.00021592 * temp + ((0.87096 * 10 ^ 6) / C74 ^ 2) + ((4.2092 *temp * 10 ^ 3) / C74 ^ 2)) -> 0.0008360571976 | C75: =(dens * EXP(-A75*(temp-15)*(1+0.8*A75*(temp - 15))))/(1-B75*P) -> 828.6210816 | D75: 0
A76: =((k_0+k_1*C75)/C75^2)+k_2 -> 0.0008942044387 | B76: =10 ^ -3 * EXP(-1.6208 + 0.00021592 * temp + ((0.87096 * 10 ^ 6) / C75 ^ 2) + ((4.2092 *temp * 10 ^ 3) / C75 ^ 2)) -> 0.0008360571976 | C76: =(dens * EXP(-A76*(temp-15)*(1+0.8*A76*(temp - 15))))/(1-B76*P) -> 828.6210816 | D76: =C75-C76 -> 0
A77: 0.0008942044387 | B77: =10 ^ -3 * EXP(-1.6208 + 0.00021592 * temp + ((0.87096 * 10 ^ 6) / C76 ^ 2) + ((4.2092 *temp * 10 ^ 3) / C76 ^ 2)) -> 0.0008360571976 | C77: =(dens * EXP(-A77*(temp-15)*(1+0.8*A77*(temp - 15))))/(1-B77*P) -> 828.6210816 | D77: 0
A78: 0.0008942044387 | B78: =10 ^ -3 * EXP(-1.6208 + 0.00021592 * temp + ((0.87096 * 10 ^ 6) / C77 ^ 2) + ((4.2092 *temp * 10 ^ 3) / C77 ^ 2)) -> 0.0008360571976 | C78: =(dens * EXP(-A78*(temp-15)*(1+0.8*A78*(temp - 15))))/(1-B78*P) -> 828.6210816 | D78: 0
A79: 0.0008942044387 | B79: =10 ^ -3 * EXP(-1.6208 + 0.00021592 * temp + ((0.87096 * 10 ^ 6) / C78 ^ 2) + ((4.2092 *temp * 10 ^ 3) / C78 ^ 2)) -> 0.0008360571976 | C79: =(dens * EXP(-A79*(temp-15)*(1+0.8*A79*(temp - 15))))/(1-B79*P) -> 828.6210816 | D79: 0
A80: 0.0008942044387 | B80: =10 ^ -3 * EXP(-1.6208 + 0.00021592 * temp + ((0.87096 * 10 ^ 6) / C79 ^ 2) + ((4.2092 *temp * 10 ^ 3) / C79 ^ 2)) -> 0.0008360571976 | C80: =(dens * EXP(-A80*(temp-15)*(1+0.8*A80*(temp - 15))))/(1-B80*P) -> 828.6210816 | D80: 0
A81: 0.0008942044387 | B81: =10 ^ -3 * EXP(-1.6208 + 0.00021592 * temp + ((0.87096 * 10 ^ 6) / C80 ^ 2) + ((4.2092 *temp * 10 ^ 3) / C80 ^ 2)) -> 0.0008360571976 | C81: =(dens * EXP(-A81*(temp-15)*(1+0.8*A81*(temp - 15))))/(1-B81*P) -> 828.6210816 | D81: 0
A82: 0.0008942044387 | B82: =10 ^ -3 * EXP(-1.6208 + 0.00021592 * temp + ((0.87096 * 10 ^ 6) / C81 ^ 2) + ((4.2092 *temp * 10 ^ 3) / C81 ^ 2)) -> 0.0008360571976 | C82: =(dens * EXP(-A82*(temp-15)*(1+0.8*A82*(temp - 15))))/(1-B82*P) -> 828.6210816 | D82: 0
A83: 0.0008942044387 | B83: =10 ^ -3 * EXP(-1.6208 + 0.00021592 * temp + ((0.87096 * 10 ^ 6) / C82 ^ 2) + ((4.2092 *temp * 10 ^ 3) / C82 ^ 2)) -> 0.0008360571976 | C83: =(dens * EXP(-A83*(temp-15)*(1+0.8*A83*(temp - 15))))/(1-B83*P) -> 828.6210816 | D83: 0
A84: 0.0008942044387 | B84: =10 ^ -3 * EXP(-1.6208 + 0.00021592 * temp + ((0.87096 * 10 ^ 6) / C83 ^ 2) + ((4.2092 *temp * 10 ^ 3) / C83 ^ 2)) -> 0.0008360571976 | C84: =(dens * EXP(-A84*(temp-15)*(1+0.8*A84*(temp - 15))))/(1-B84*P) -> 828.6210816 | D84: 0
A85: 0.0008942044387 | B85: =10 ^ -3 * EXP(-1.6208 + 0.00021592 * temp + ((0.87096 * 10 ^ 6) / C84 ^ 2) + ((4.2092 *temp * 10 ^ 3) / C84 ^ 2)) -> 0.0008360571976 | C85: =(dens * EXP(-A85*(temp-15)*(1+0.8*A85*(temp - 15))))/(1-B85*P) -> 828.6210816 | D85: 0
A86: 0.0008942044387 | B86: =10 ^ -3 * EXP(-1.6208 + 0.00021592 * temp + ((0.87096 * 10 ^ 6) / C85 ^ 2) + ((4.2092 *temp * 10 ^ 3) / C85 ^ 2)) -> 0.0008360571976 | C86: =(dens * EXP(-A86*(temp-15)*(1+0.8*A86*(temp - 15))))/(1-B86*P) -> 828.6210816 | D86: 0
A87: 0.0008942044387 | B87: =10 ^ -3 * EXP(-1.6208 + 0.00021592 * temp + ((0.87096 * 10 ^ 6) / C86 ^ 2) + ((4.2092 *temp * 10 ^ 3) / C86 ^ 2)) -> 0.0008360571976 | C87: =(dens * EXP(-A87*(temp-15)*(1+0.8*A87*(temp - 15))))/(1-B87*P) -> 828.6210816 | D87: 0
A88: 0.0008942044387 | B88: =10 ^ -3 * EXP(-1.6208 + 0.00021592 * temp + ((0.87096 * 10 ^ 6) / C87 ^ 2) + ((4.2092 *temp * 10 ^ 3) / C87 ^ 2)) -> 0.0008360571976 | C88: =(dens * EXP(-A88*(temp-15)*(1+0.8*A88*(temp - 15))))/(1-B88*P) -> 828.6210816 | D88: 0
A89: 0.0008942044387 | B89: =10 ^ -3 * EXP(-1.6208 + 0.00021592 * temp + ((0.87096 * 10 ^ 6) / C88 ^ 2) + ((4.2092 *temp * 10 ^ 3) / C88 ^ 2)) -> 0.0008360571976 | C89: =(dens * EXP(-A89*(temp-15)*(1+0.8*A89*(temp - 15))))/(1-B89*P) -> 828.6210816 | D89: 0
A90: 0.0008942044387 | B90: =10 ^ -3 * EXP(-1.6208 + 0.00021592 * temp + ((0.87096 * 10 ^ 6) / C89 ^ 2) + ((4.2092 *temp * 10 ^ 3) / C89 ^ 2)) -> 0.0008360571976 | C90: =(dens * EXP(-A90*(temp-15)*(1+0.8*A90*(temp - 15))))/(1-B90*P) -> 828.6210816 | D90: 0
A91: 0.0008942044387 | B91: =10 ^ -3 * EXP(-1.6208 + 0.00021592 * temp + ((0.87096 * 10 ^ 6) / C90 ^ 2) + ((4.2092 *temp * 10 ^ 3) / C90 ^ 2)) -> 0.0008360571976 | C91: =(dens * EXP(-A91*(temp-15)*(1+0.8*A91*(temp - 15))))/(1-B91*P) -> 828.6210816 | D91: 0
A92: 0.0008942044387 | B92: =10 ^ -3 * EXP(-1.6208 + 0.00021592 * temp + ((0.87096 * 10 ^ 6) / C91 ^ 2) + ((4.2092 *temp * 10 ^ 3) / C91 ^ 2)) -> 0.0008360571976 | C92: =(dens * EXP(-A92*(temp-15)*(1+0.8*A92*(temp - 15))))/(1-B92*P) -> 828.6210816 | D92: 0
A93: 0.0008942044387 | B93: =10 ^ -3 * EXP(-1.6208 + 0.00021592 * temp + ((0.87096 * 10 ^ 6) / C92 ^ 2) + ((4.2092 *temp * 10 ^ 3) / C92 ^ 2)) -> 0.0008360571976 | C93: =(dens * EXP(-A93*(temp-15)*(1+0.8*A93*(temp - 15))))/(1-B93*P) -> 828.6210816 | D93: 0
A94: 0.0008942044387 | B94: =10 ^ -3 * EXP(-1.6208 + 0.00021592 * temp + ((0.87096 * 10 ^ 6) / C93 ^ 2) + ((4.2092 *temp * 10 ^ 3) / C93 ^ 2)) -> 0.0008360571976 | C94: =(dens * EXP(-A94*(temp-15)*(1+0.8*A94*(temp - 15))))/(1-B94*P) -> 828.6210816 | D94: 0
A95: 0.0008942044387 | B95: =10 ^ -3 * EXP(-1.6208 + 0.00021592 * temp + ((0.87096 * 10 ^ 6) / C94 ^ 2) + ((4.2092 *temp * 10 ^ 3) / C94 ^ 2)) -> 0.0008360571976 | C95: =(dens * EXP(-A95*(temp-15)*(1+0.8*A95*(temp - 15))))/(1-B95*P) -> 828.6210816 | D95: 0
A96: 0.0008942044387 | B96: =10 ^ -3 * EXP(-1.6208 + 0.00021592 * temp + ((0.87096 * 10 ^ 6) / C95 ^ 2) + ((4.2092 *temp * 10 ^ 3) / C95 ^ 2)) -> 0.0008360571976 | C96: =(dens * EXP(-A96*(temp-15)*(1+0.8*A96*(temp - 15))))/(1-B96*P) -> 828.6210816 | D96: 0
A97: 0.0008942044387 | B97: =10 ^ -3 * EXP(-1.6208 + 0.00021592 * temp + ((0.87096 * 10 ^ 6) / C96 ^ 2) + ((4.2092 *temp * 10 ^ 3) / C96 ^ 2)) -> 0.0008360571976 | C97: =(dens * EXP(-A97*(temp-15)*(1+0.8*A97*(temp - 15))))/(1-B97*P) -> 828.6210816 | D97: 0
A98: 0.0008942044387 | B98: =10 ^ -3 * EXP(-1.6208 + 0.00021592 * temp + ((0.87096 * 10 ^ 6) / C97 ^ 2) + ((4.2092 *temp * 10 ^ 3) / C97 ^ 2)) -> 0.0008360571976 | C98: =(dens * EXP(-A98*(temp-15)*(1+0.8*A98*(temp - 15))))/(1-B98*P) -> 828.6210816 | D98: 0
A99: 0.0008942044387 | B99: =10 ^ -3 * EXP(-1.6208 + 0.00021592 * temp + ((0.87096 * 10 ^ 6) / C98 ^ 2) + ((4.2092 *temp * 10 ^ 3) / C98 ^ 2)) -> 0.0008360571976 | C99: =(dens * EXP(-A99*(temp-15)*(1+0.8*A99*(temp - 15))))/(1-B99*P) -> 828.6210816 | D99: 0
A100: 0.0008942044387 | B100: =10 ^ -3 * EXP(-1.6208 + 0.00021592 * temp + ((0.87096 * 10 ^ 6) / C99 ^ 2) + ((4.2092 *temp * 10 ^ 3) / C99 ^ 2)) -> 0.0008360571976 | C100: =(dens * EXP(-A100*(temp-15)*(1+0.8*A100*(temp - 15))))/(1-B100*P) -> 828.6210816 | D100: 0
A101: 0.0008942044387 | B101: =10 ^ -3 * EXP(-1.6208 + 0.00021592 * temp + ((0.87096 * 10 ^ 6) / C100 ^ 2) + ((4.2092 *temp * 10 ^ 3) / C100 ^ 2)) -> 0.0008360571976 | C101: =(dens * EXP(-A101*(temp-15)*(1+0.8*A101*(temp - 15))))/(1-B101*P) -> 828.6210816 | D101: 0
A102: 0.0008942044387 | B102: =10 ^ -3 * EXP(-1.6208 + 0.00021592 * temp + ((0.87096 * 10 ^ 6) / C101 ^ 2) + ((4.2092 *temp * 10 ^ 3) / C101 ^ 2)) -> 0.0008360571976 | C102: =(dens * EXP(-A102*(temp-15)*(1+0.8*A102*(temp - 15))))/(1-B102*P) -> 828.6210816 | D102: 0
A103: 0.0008942044387 | B103: =10 ^ -3 * EXP(-1.6208 + 0.00021592 * temp + ((0.87096 * 10 ^ 6) / C102 ^ 2) + ((4.2092 *temp * 10 ^ 3) / C102 ^ 2)) -> 0.0008360571976 | C103: =(dens * EXP(-A103*(temp-15)*(1+0.8*A103*(temp - 15))))/(1-B103*P) -> 828.6210816 | D103: 0
A104: 0.0008942044387 | B104: =10 ^ -3 * EXP(-1.6208 + 0.00021592 * temp + ((0.87096 * 10 ^ 6) / C103 ^ 2) + ((4.2092 *temp * 10 ^ 3) / C103 ^ 2)) -> 0.0008360571976 | C104: =(dens * EXP(-A104*(temp-15)*(1+0.8*A104*(temp - 15))))/(1-B104*P) -> 828.6210816 | D104: 0
A105: 0.0008942044387 | B105: =10 ^ -3 * EXP(-1.6208 + 0.00021592 * temp + ((0.87096 * 10 ^ 6) / C104 ^ 2) + ((4.2092 *temp * 10 ^ 3) / C104 ^ 2)) -> 0.0008360571976 | C105: =(dens * EXP(-A105*(temp-15)*(1+0.8*A105*(temp - 15))))/(1-B105*P) -> 828.6210816 | D105: 0
A106: 0.0008942044387 | B106: =10 ^ -3 * EXP(-1.6208 + 0.00021592 * temp + ((0.87096 * 10 ^ 6) / C105 ^ 2) + ((4.2092 *temp * 10 ^ 3) / C105 ^ 2)) -> 0.0008360571976 | C106: =(dens * EXP(-A106*(temp-15)*(1+0.8*A106*(temp - 15))))/(1-B106*P) -> 828.6210816 | D106: 0
A107: 0.0008942044387 | B107: =10 ^ -3 * EXP(-1.6208 + 0.00021592 * temp + ((0.87096 * 10 ^ 6) / C106 ^ 2) + ((4.2092 *temp * 10 ^ 3) / C106 ^ 2)) -> 0.0008360571976 | C107: =(dens * EXP(-A107*(temp-15)*(1+0.8*A107*(temp - 15))))/(1-B107*P) -> 828.6210816 | D107: 0
A108: 0.0008942044387 | B108: =10 ^ -3 * EXP(-1.6208 + 0.00021592 * temp + ((0.87096 * 10 ^ 6) / C107 ^ 2) + ((4.2092 *temp * 10 ^ 3) / C107 ^ 2)) -> 0.0008360571976 | C108: =(dens * EXP(-A108*(temp-15)*(1+0.8*A108*(temp - 15))))/(1-B108*P) -> 828.6210816 | D108: 0
A109: 0.0008942044387 | B109: =10 ^ -3 * EXP(-1.6208 + 0.00021592 * temp + ((0.87096 * 10 ^ 6) / C108 ^ 2) + ((4.2092 *temp * 10 ^ 3) / C108 ^ 2)) -> 0.0008360571976 | C109: =(dens * EXP(-A109*(temp-15)*(1+0.8*A109*(temp - 15))))/(1-B109*P) -> 828.6210816 | D109: 0
A110: 0.0008942044387 | B110: =10 ^ -3 * EXP(-1.6208 + 0.00021592 * temp + ((0.87096 * 10 ^ 6) / C109 ^ 2) + ((4.2092 *temp * 10 ^ 3) / C109 ^ 2)) -> 0.0008360571976 | C110: =(dens * EXP(-A110*(temp-15)*(1+0.8*A110*(temp - 15))))/(1-B110*P) -> 828.6210816 | D110: 0
A111: 0.0008942044387 | B111: =10 ^ -3 * EXP(-1.6208 + 0.00021592 * temp + ((0.87096 * 10 ^ 6) / C110 ^ 2) + ((4.2092 *temp * 10 ^ 3) / C110 ^ 2)) -> 0.0008360571976 | C111: =(dens * EXP(-A111*(temp-15)*(1+0.8*A111*(temp - 15))))/(1-B111*P) -> 828.6210816 | D111: 0
A112: 0.0008942044387 | B112: =10 ^ -3 * EXP(-1.6208 + 0.00021592 * temp + ((0.87096 * 10 ^ 6) / C111 ^ 2) + ((4.2092 *temp * 10 ^ 3) / C111 ^ 2)) -> 0.0008360571976 | C112: =(dens * EXP(-A112*(temp-15)*(1+0.8*A112*(temp - 15))))/(1-B112*P) -> 828.6210816 | D112: 0
A113: 0.0008942044387 | B113: =10 ^ -3 * EXP(-1.6208 + 0.00021592 * temp + ((0.87096 * 10 ^ 6) / C112 ^ 2) + ((4.2092 *temp * 10 ^ 3) / C112 ^ 2)) -> 0.0008360571976 | C113: =(dens * EXP(-A113*(temp-15)*(1+0.8*A113*(temp - 15))))/(1-B113*P) -> 828.6210816 | D113: 0
A114: 0.0008942044387 | B114: =10 ^ -3 * EXP(-1.6208 + 0.00021592 * temp + ((0.87096 * 10 ^ 6) / C113 ^ 2) + ((4.2092 *temp * 10 ^ 3) / C113 ^ 2)) -> 0.0008360571976 | C114: =(dens * EXP(-A114*(temp-15)*(1+0.8*A114*(temp - 15))))/(1-B114*P) -> 828.6210816 | D114: 0
A115: 0.0008942044387 | B115: =10 ^ -3 * EXP(-1.6208 + 0.00021592 * temp + ((0.87096 * 10 ^ 6) / C114 ^ 2) + ((4.2092 *temp * 10 ^ 3) / C114 ^ 2)) -> 0.0008360571976 | C115: =(dens * EXP(-A115*(temp-15)*(1+0.8*A115*(temp - 15))))/(1-B115*P) -> 828.6210816 | D115: 0
A116: 0.0008942044387 | B116: =10 ^ -3 * EXP(-1.6208 + 0.00021592 * temp + ((0.87096 * 10 ^ 6) / C115 ^ 2) + ((4.2092 *temp * 10 ^ 3) / C115 ^ 2)) -> 0.0008360571976 | C116: =(dens * EXP(-A116*(temp-15)*(1+0.8*A116*(temp - 15))))/(1-B116*P) -> 828.6210816 | D116: 0
A117: 0.0008942044387 | B117: =10 ^ -3 * EXP(-1.6208 + 0.00021592 * temp + ((0.87096 * 10 ^ 6) / C116 ^ 2) + ((4.2092 *temp * 10 ^ 3) / C116 ^ 2)) -> 0.0008360571976 | C117: =(dens * EXP(-A117*(temp-15)*(1+0.8*A117*(temp - 15))))/(1-B117*P) -> 828.6210816 | D117: 0
A118: 0.0008942044387 | B118: =10 ^ -3 * EXP(-1.6208 + 0.00021592 * temp + ((0.87096 * 10 ^ 6) / C117 ^ 2) + ((4.2092 *temp * 10 ^ 3) / C117 ^ 2)) -> 0.0008360571976 | C118: =(dens * EXP(-A118*(temp-15)*(1+0.8*A118*(temp - 15))))/(1-B118*P) -> 828.6210816 | D118: 0
A119: 0.0008942044387 | B119: =10 ^ -3 * EXP(-1.6208 + 0.00021592 * temp + ((0.87096 * 10 ^ 6) / C118 ^ 2) + ((4.2092 *temp * 10 ^ 3) / C118 ^ 2)) -> 0.0008360571976 | C119: =(dens * EXP(-A119*(temp-15)*(1+0.8*A119*(temp - 15))))/(1-B119*P) -> 828.6210816 | D119: 0
A120: 0.0008942044387 | B120: =10 ^ -3 * EXP(-1.6208 + 0.00021592 * temp + ((0.87096 * 10 ^ 6) / C119 ^ 2) + ((4.2092 *temp * 10 ^ 3) / C119 ^ 2)) -> 0.0008360571976 | C120: =(dens * EXP(-A120*(temp-15)*(1+0.8*A120*(temp - 15))))/(1-B120*P) -> 828.6210816 | D120: 0
A121: 0.0008942044387 | B121: =10 ^ -3 * EXP(-1.6208 + 0.00021592 * temp + ((0.87096 * 10 ^ 6) / C120 ^ 2) + ((4.2092 *temp * 10 ^ 3) / C120 ^ 2)) -> 0.0008360571976 | C121: =(dens * EXP(-A121*(temp-15)*(1+0.8*A121*(temp - 15))))/(1-B121*P) -> 828.6210816 | D121: 0
A122: 0.0008942044387 | B122: =10 ^ -3 * EXP(-1.6208 + 0.00021592 * temp + ((0.87096 * 10 ^ 6) / C121 ^ 2) + ((4.2092 *temp * 10 ^ 3) / C121 ^ 2)) -> 0.0008360571976 | C122: =(dens * EXP(-A122*(temp-15)*(1+0.8*A122*(temp - 15))))/(1-B122*P) -> 828.6210816 | D122: 0
A123: 0.0008942044387 | B123: =10 ^ -3 * EXP(-1.6208 + 0.00021592 * temp + ((0.87096 * 10 ^ 6) / C122 ^ 2) + ((4.2092 *temp * 10 ^ 3) / C122 ^ 2)) -> 0.0008360571976 | C123: =(dens * EXP(-A123*(temp-15)*(1+0.8*A123*(temp - 15))))/(1-B123*P) -> 828.6210816 | D123: 0
A124: 0.0008942044387 | B124: =10 ^ -3 * EXP(-1.6208 + 0.00021592 * temp + ((0.87096 * 10 ^ 6) / C123 ^ 2) + ((4.2092 *temp * 10 ^ 3) / C123 ^ 2)) -> 0.0008360571976 | C124: =(dens * EXP(-A124*(temp-15)*(1+0.8*A124*(temp - 15))))/(1-B124*P) -> 828.6210816 | D124: 0
A125: 0.0008942044387 | B125: =10 ^ -3 * EXP(-1.6208 + 0.00021592 * temp + ((0.87096 * 10 ^ 6) / C124 ^ 2) + ((4.2092 *temp * 10 ^ 3) / C124 ^ 2)) -> 0.0008360571976 | C125: =(dens * EXP(-A125*(temp-15)*(1+0.8*A125*(temp - 15))))/(1-B125*P) -> 828.6210816 | D125: 0
A126: 0.0008942044387 | B126: =10 ^ -3 * EXP(-1.6208 + 0.00021592 * temp + ((0.87096 * 10 ^ 6) / C125 ^ 2) + ((4.2092 *temp * 10 ^ 3) / C125 ^ 2)) -> 0.0008360571976 | C126: =(dens * EXP(-A126*(temp-15)*(1+0.8*A126*(temp - 15))))/(1-B126*P) -> 828.6210816 | D126: 0
A127: 0.0008942044387 | B127: =10 ^ -3 * EXP(-1.6208 + 0.00021592 * temp + ((0.87096 * 10 ^ 6) / C126 ^ 2) + ((4.2092 *temp * 10 ^ 3) / C126 ^ 2)) -> 0.0008360571976 | C127: =(dens * EXP(-A127*(temp-15)*(1+0.8*A127*(temp - 15))))/(1-B127*P) -> 828.6210816 | D127: 0
A128: 0.0008942044387 | B128: =10 ^ -3 * EXP(-1.6208 + 0.00021592 * temp + ((0.87096 * 10 ^ 6) / C127 ^ 2) + ((4.2092 *temp * 10 ^ 3) / C127 ^ 2)) -> 0.0008360571976 | C128: =(dens * EXP(-A128*(temp-15)*(1+0.8*A128*(temp - 15))))/(1-B128*P) -> 828.6210816 | D128: 0
A129: 0.0008942044387 | B129: =10 ^ -3 * EXP(-1.6208 + 0.00021592 * temp + ((0.87096 * 10 ^ 6) / C128 ^ 2) + ((4.2092 *temp * 10 ^ 3) / C128 ^ 2)) -> 0.0008360571976 | C129: =(dens * EXP(-A129*(temp-15)*(1+0.8*A129*(temp - 15))))/(1-B129*P) -> 828.6210816 | D129: 0
A130: 0.0008942044387 | B130: =10 ^ -3 * EXP(-1.6208 + 0.00021592 * temp + ((0.87096 * 10 ^ 6) / C129 ^ 2) + ((4.2092 *temp * 10 ^ 3) / C129 ^ 2)) -> 0.0008360571976 | C130: =(dens * EXP(-A130*(temp-15)*(1+0.8*A130*(temp - 15))))/(1-B130*P) -> 828.6210816 | D130: 0
A131: 0.0008942044387 | B131: =10 ^ -3 * EXP(-1.6208 + 0.00021592 * temp + ((0.87096 * 10 ^ 6) / C130 ^ 2) + ((4.2092 *temp * 10 ^ 3) / C130 ^ 2)) -> 0.0008360571976 | C131: =(dens * EXP(-A131*(temp-15)*(1+0.8*A131*(temp - 15))))/(1-B131*P) -> 828.6210816 | D131: 0
